[Event "9th HDBank Open 2019"]
[Site "Ho Chi Minh City"]
[Date "2019.03.07"]
[Round "1.24"]
[White "Vo, Dai Hoai Duc"]
[Black "Nguyen, Anh Dung"]
[Result "1/2-1/2"]
[ECO "E42"]
[WhiteElo "2226"]
[BlackElo "2458"]
[Annotator "ChessBase"]
[PlyCount "86"]
[EventDate "2019.03.07"]
[EventType "swiss"]
[EventCountry "VIE"]
[SourceTitle "playchess.com"]
[Source "ChessBase"]
[SourceQuality "1"]
[TimeControl "5400+30"]

1. d4 {[%emt 0:00:00]} Nf6 {[%emt 0:00:00]} 2. c4 {[%emt 0:00:05]} e6 {[%emt 0:00:13]} 3. Nc3 {[%emt 0:00:06]} Bb4 {[%emt 0:00:27]} 4. e3 {[%emt 0:00:08]} c5 {[%emt 0:00:56]} 5. Nge2 {[%emt 0:00:06]} cxd4 {[%emt 0:01:40]} 6. exd4 {[%emt 0:00:06]} d5 {[%emt 0:00:42]} 7. c5 {[%emt 0:00:22]} Ne4 {[%emt 0:00:51]} 8. Bd2 {[%emt 0:01:06]} Nxd2 {[%emt 0:01:54]} 9. Qxd2 {[%emt 0:00:07]} Nc6 {[%emt 0:03:46]} 10. a3 {[%emt 0:02:03]} Ba5 {[%emt 0:10:13]} 11. b4 {[%emt 0:00:11]} Bc7 {[%emt 0:00:11]} 12. g3 {[%emt 0:01:53]} O-O {[%emt 0:00:29]} 13. Bg2 {[%emt 0:00:17]} Bd7 {[%emt 0:01:40]} 14. O-O {[%emt 0:00:27]} Ne7 {[%emt 0:03:56]} 15. f4 {[%emt 0:01:43]} Nf5 {[%emt 0:02:32]} 16. Kh1 {[%emt 0:12:59]} Qf6 {[%emt 0:07:29]} 17. Rf3 {[%emt 0:01:33]} h5 {[%emt 0:13:52]} 18. Rd3 {[%emt 0:03:12]} g6 {[%emt 0:05:24]} 19. Ng1 {[%emt 0:07:15]} b6 {[%emt 0:06:50]} 20. Rb1 {[%emt 0:14:53]} Rab8 {[%emt 0:05:46]} 21. b5 {[%emt 0:06:41]} bxc5 {[%emt 0:02:20]} 22. dxc5 {[%emt 0:05:35]} Rfd8 {[%emt 0:01:24]} 23. a4 {[%emt 0:05:48]} Be8 {[%emt 0:01:12]} 24. Nce2 {[%emt 0:05:29]} Rdc8 {[%emt 0:03:19]} 25. Rc1 {[%emt 0:03:12]} Bd8 {[%emt 0:02:15]} 26. Nf3 {[%emt 0:17:12]} a6 {[%emt 0:02:19]} 27. b6 {[%emt 0:00:08]} Bxa4 {[%emt 0:00:22]} 28. Nfd4 {[%emt 0:03:43]} Nxd4 {[%emt 0:03:26]} 29. Nxd4 {[%emt 0:00:13]} Qe7 {[%emt 0:01:26]} 30. Rdc3 {[%emt 0:03:35]} Bb5 {[%emt 0:00:40]} 31. Nxb5 {[%emt 0:00:23]} axb5 {[%emt 0:00:14]} 32. Bf1 {[%emt 0:03:27]} b4 {[%emt 0:02:30]} 33. R3c2 {[%emt 0:00:04]} b3 {[%emt 0:02:19]} 34. Rc3 {[%emt 0:00:06]} Ra8 {[%emt 0:01:21]} 35. Qb2 {[%emt 0:01:09]} Ra5 {[%emt 0:02:56]} 36. Qxb3 {[%emt 0:00:11]} Raxc5 {[%emt 0:00:10]} 37. Rxc5 {[%emt 0:00:52]} Rxc5 {[%emt 0:00:05]} 38. Rxc5 {[%emt 0:00:23]} Qxc5 {[%emt 0:00:06]} 39. b7 {[%emt 0:00:30]} Qf2 {[%emt 0:01:02]} 40. Qb1 {[%emt 0:00:14]} Bc7 {[%emt 0:00:42]} 41. b8=Q+ {[%emt 0:00:10]} Bxb8 {[%emt 0:00:03]} 42. Qxb8+ {[%emt 0:00:09]} Kh7 {[%emt 0:00:06]} 43. Qb1 {[%emt 0:00:27]} h4 1/2-1/2

[Event "9th HDBank Open 2019"]
[Site "Ho Chi Minh City"]
[Date "2019.03.07"]
[Round "1.25"]
[White "Nguyen, Duc Hoa"]
[Black "Bhambure, Shantanu"]
[Result "1-0"]
[ECO "A21"]
[WhiteElo "2450"]
[BlackElo "2220"]
[Annotator "ChessBase"]
[PlyCount "106"]
[EventDate "2019.03.07"]
[EventType "swiss"]
[EventCountry "VIE"]
[SourceTitle "playchess.com"]
[Source "ChessBase"]
[SourceQuality "1"]
[TimeControl "5400+30"]

1. c4 {[%emt 0:00:20]} e5 {[%emt 0:00:00]} 2. Nc3 {[%emt 0:00:09]} Bb4 {[%emt 0:00:14]} 3. e3 {[%emt 0:00:34]} Bxc3 {[%emt 0:01:37]} 4. bxc3 {[%emt 0:00:29]} d6 {[%emt 0:00:33]} 5. e4 {[%emt 0:04:23]} Ne7 {[%emt 0:03:35]} 6. d4 {[%emt 0:04:49]} c5 {[%emt 0:06:24]} 7. Bd3 {[%emt 0:04:48]} Nbc6 {[%emt 0:07:05]} 8. Ne2 {[%emt 0:06:40]} O-O {[%emt 0:07:06]} 9. O-O {[%emt 0:00:46]} f5 {[%emt 0:02:33]} 10. f4 {[%emt 0:07:03]} exd4 {[%emt 0:04:28]} 11. cxd4 {[%emt 0:00:17]} cxd4 {[%emt 0:11:19]} 12. Rb1 {[%emt 0:03:33]} b6 {[%emt 0:09:00]} 13. Bb2 {[%emt 0:01:39]} fxe4 {[%emt 0:03:37]} 14. Bxe4 {[%emt 0:00:07]} Bf5 {[%emt 0:00:21]} 15. Bxc6 {[%emt 0:09:25]} Nxc6 {[%emt 0:00:18]} 16. Nxd4 {[%emt 0:00:05]} Nxd4 {[%emt 0:07:25]} 17. Qxd4 {[%emt 0:00:05]} Qc7 {[%emt 0:01:27]} 18. Rbd1 {[%emt 0:03:44]} Qc5 {[%emt 0:01:46]} 19. Rf2 {[%emt 0:01:27]} Rf7 {[%emt 0:06:14]} 20. h3 {[%emt 0:00:08]} Be6 {[%emt 0:04:02]} 21. Qxd6 {[%emt 0:02:55]} Qxd6 {[%emt 0:01:01]} 22. Rxd6 {[%emt 0:00:06]} Bxc4 {[%emt 0:00:08]} 23. Be5 {[%emt 0:00:28]} b5 {[%emt 0:02:46]} 24. g4 {[%emt 0:01:43]} Re8 {[%emt 0:01:50]} 25. Kh2 {[%emt 0:09:46]} a5 {[%emt 0:01:27]} 26. Rfd2 {[%emt 0:03:24]} Rfe7 {[%emt 0:02:36]} 27. h4 {[%emt 0:02:24]} Re6 {[%emt 0:02:31]} 28. Rd7 {[%emt 0:01:17]} R6e7 {[%emt 0:00:58]} 29. Kg3 {[%emt 0:02:08]} Kf7 {[%emt 0:02:43]} 30. R7d6 {[%emt 0:01:19]} Re6 {[%emt 0:01:25]} 31. R6d4 {[%emt 0:00:11]} a4 {[%emt 0:01:30]} 32. a3 {[%emt 0:02:19]} h6 {[%emt 0:01:42]} 33. Rd7+ {[%emt 0:02:04]} R6e7 {[%emt 0:00:25]} 34. f5 {[%emt 0:03:34]} g5 {[%emt 0:04:36]} 35. R2d6 {[%emt 0:03:54]} Rxd7 {[%emt 0:01:10]} 36. Rxd7+ {[%emt 0:00:05]} Re7 {[%emt 0:00:12]} 37. Rxe7+ {[%emt 0:00:35]} Kxe7 {[%emt 0:00:02]} 38. Bg7 {[%emt 0:00:10]} gxh4+ {[%emt 0:01:34]} 39. Kxh4 {[%emt 0:00:05]} Bd3 {[%emt 0:00:58]} 40. Kh5 {[%emt 0:00:55]} Be2 {[%emt 0:00:48]} 41. Bxh6 {[%emt 0:00:41]} Kf6 {[%emt 0:00:13]} 42. Bd2 {[%emt 0:00:22]} Bd3 {[%emt 0:00:30]} 43. Bc3+ {[%emt 0:00:04]} Kf7 {[%emt 0:00:04]} 44. Kg5 {[%emt 0:00:08]} Bc2 {[%emt 0:00:52]} 45. Kf4 {[%emt 0:00:08]} Bb1 {[%emt 0:00:31]} 46. g5 {[%emt 0:00:06]} Bc2 {[%emt 0:00:21]} 47. g6+ {[%emt 0:00:07]} Kg8 {[%emt 0:00:10]} 48. Kg5 {[%emt 0:00:09]} Bd3 {[%emt 0:00:27]} 49. f6 {[%emt 0:00:11]} Bc4 {[%emt 0:00:07]} 50. Kf4 {[%emt 0:00:13]} Kf8 {[%emt 0:00:54]} 51. Ke5 {[%emt 0:00:08]} Ke8 {[%emt 0:00:29]} 52. Bb4 {[%emt 0:00:20]} Bb3 {[%emt 0:00:34]} 53. Kf4 {[%emt 0:00:08]} Bc4 {[%emt 0:00:14]} 1-0

[Event "9th HDBank Open 2019"]
[Site "Ho Chi Minh City"]
[Date "2019.03.07"]
[Round "1.28"]
[White "Lu, Chan Hung"]
[Black "Mendonca, Leon Luke"]
[Result "1/2-1/2"]
[ECO "A15"]
[WhiteElo "2207"]
[BlackElo "2446"]
[Annotator "NA"]
[PlyCount "157"]
[EventDate "2019.03.07"]
[EventType "swiss"]
[EventCountry "VIE"]
[SourceTitle "playchess.com"]
[Source "ChessBase"]
[SourceQuality "1"]
[TimeControl "5400+30"]

1. c4 {[%emt 0:00:00]} Nf6 {[%emt 0:00:00]} 2. Nf3 {[%emt 0:00:00]} g6 {[%emt 0:00:16]} 3. b3 {[%emt 0:00:25]} Bg7 {[%emt 0:00:10]} 4. Bb2 {[%emt 0:00:17]} O-O {[%emt 0:00:15]} 5. g3 {[%emt 0:00:19]} d6 {[%emt 0:01:15]} 6. Bg2 {[%emt 0:01:05]} e5 {[%emt 0:01:12]} 7. d3 {[%emt 0:00:57]} Nc6 {[%emt 0:02:54]} 8. O-O {[%emt 0:01:02]} h6 {[%emt 0:03:06]} 9. Nc3 {[%emt 0:01:17]} Nd7 {[%emt 0:02:10]} 10. a3 {[%emt 0:05:19]} f5 {[%emt 0:01:17]} 11. b4 {[%emt 0:06:32]} g5 {[%emt 0:01:58]} 12. b5 {[%emt 0:05:53]} Ne7 {[%emt 0:00:24]} 13. h4 {[%emt 0:01:01]} g4 {[%emt 0:09:52]} 14. Nh2 {[%emt 0:00:48]} h5 {[%emt 0:02:27]} 15. Nd5 {[%emt 0:08:47]} Ng6 $11 {[%emt 0:13:52]} 16. Qd2 {[%emt 0:02:08]} Nc5 {[%emt 0:03:29]} 17. Rad1 {[%emt 0:06:47]} Ne6 {[%emt 0:06:07]} 18. e3 {[%emt 0:04:21]} Bd7 {[%emt 0:03:56]} 19. f4 {[%emt 0:13:19]} c6 {[%emt 0:05:21]} 20. Nb4 {[%emt 0:00:58]} exf4 {[%emt 0:06:14]} 21. exf4 {[%emt 0:01:01]} Nd4 {[%emt 0:00:50]} 22. Kh1 {[%emt 0:06:08]} Qb6 {[%emt 0:08:09]} 23. bxc6 {[%emt 0:07:18]} bxc6 {[%emt 0:00:09]} 24. Bxd4 {[%emt 0:00:35]} Bxd4 {[%emt 0:00:47]} 25. Rb1 {[%emt 0:01:03]} Qc7 {[%emt 0:04:07]} 26. Na6 {[%emt 0:13:17]} Qc8 {[%emt 0:08:39]} 27. Qb4 {[%emt 0:00:27]} c5 {[%emt 0:01:09]} 28. Qb7 {[%emt 0:06:13]} Qxb7 {[%emt 0:02:23]} 29. Rxb7 {[%emt 0:01:01]} Bc8 {[%emt 0:02:29]} 30. Bd5+ {[%emt 0:00:07]} Kh8 {[%emt 0:00:04]} 31. Rb8 {[%emt 0:00:04]} Rxb8 {[%emt 0:00:38]} 32. Nxb8 {[%emt 0:00:02]} Ne7 {[%emt 0:01:10]} 33. Rb1 {[%emt 0:02:50]} Nxd5 {[%emt 0:01:53]} 34. cxd5 {[%emt 0:00:02]} Re8 {[%emt 0:01:17]} 35. Nf1 {[%emt 0:02:08]} Re2 {[%emt 0:00:36]} 36. a4 {[%emt 0:02:00]} Kg7 {[%emt 0:01:46]} 37. Rd1 {[%emt 0:01:17]} Bc3 {[%emt 0:04:57]} 38. Rc1 {[%emt 0:00:31]} Bd4 {[%emt 0:00:11]} 39. Rd1 {[%emt 0:00:01]} Bc3 {[%emt 0:00:00]} 40. Rc1 {[%emt 0:00:01]} Be1 {[%emt 0:01:24]} 41. Nc6 {[%emt 0:02:11]} Ba6 {[%emt 0:00:52]} 42. Rd1 {[%emt 0:00:19]} Bb7 {[%emt 0:00:30]} 43. Rb1 {[%emt 0:00:54]} Bb4 {[%emt 0:00:12]} 44. a5 {[%emt 0:00:25]} Kf8 {[%emt 0:00:42]} 45. Kg1 {[%emt 0:00:39]} Bxc6 {[%emt 0:00:37]} 46. dxc6 {[%emt 0:00:06]} Ke8 {[%emt 0:00:16]} 47. d4 {[%emt 0:00:46]} Kd8 {[%emt 0:00:33]} 48. d5 {[%emt 0:00:40]} Kc7 {[%emt 0:00:50]} 49. a6 {[%emt 0:00:36]} Kb6 {[%emt 0:00:28]} 50. Rb3 {[%emt 0:00:13]} Kxa6 {[%emt 0:00:32]} 51. Re3 {[%emt 0:00:47]} Rxe3 {[%emt 0:00:29]} 52. Nxe3 {[%emt 0:00:02]} Kb6 {[%emt 0:00:30]} 53. Nxf5 {[%emt 0:00:55]} Kc7 {[%emt 0:00:13]} 54. Ne3 {[%emt 0:00:30]} a5 {[%emt 0:00:32]} 55. f5 {[%emt 0:00:11]} Bc3 {[%emt 0:00:05]} 56. Nc4 {[%emt 0:00:13]} a4 {[%emt 0:00:49]} 57. Kf2 {[%emt 0:00:06]} Bb2 {[%emt 0:00:50]} 58. Ke2 {[%emt 0:01:32]} Be5 {[%emt 0:00:34]} 59. Kd3 {[%emt 0:00:30]} Bxg3 {[%emt 0:00:20]} 60. f6 {[%emt 0:00:31]} Bxh4 {[%emt 0:00:04]} 61. f7 {[%emt 0:00:22]} Be7 {[%emt 0:00:01]} 62. Ke4 {[%emt 0:00:39]} h4 {[%emt 0:00:31]} 63. Kf4 {[%emt 0:00:07]} h3 {[%emt 0:00:04]} 64. Kg3 {[%emt 0:00:06]} Bf8 {[%emt 0:00:17]} 65. Kh2 {[%emt 0:00:23]} Bg7 {[%emt 0:00:53]} 66. Kg3 {[%emt 0:01:07]} Bh6 {[%emt 0:00:30]} 67. Kh2 {[%emt 0:00:25]} Kd8 {[%emt 0:00:37]} 68. Kg3 {[%emt 0:00:14]} Bg7 {[%emt 0:00:56]} 69. Kh2 {[%emt 0:00:27]} Kc7 {[%emt 0:01:06]} 70. Kg3 {[%emt 0:00:19]} Kd8 {[%emt 0:00:32]} 71. Kh2 {[%emt 0:00:09]} Ke7 {[%emt 0:00:25]} 72. Kg3 {[%emt 0:01:14]} Kd8 {[%emt 0:00:37]} 73. Kh2 {[%emt 0:00:08]} Kc7 {[%emt 0:00:30]} 74. Kg3 {[%emt 0:00:24]} Bh6 {[%emt 0:00:30]} 75. Kh2 {[%emt 0:01:00]} Bf4+ {[%emt 0:00:29]} 76. Kg1 {[%emt 0:00:10]} Bh6 {[%emt 0:00:07]} 77. Kh2 {[%emt 0:00:50]} Bf4+ {[%emt 0:00:29]} 78. Kg1 {[%emt 0:00:02]} Bh6 {[%emt 0:00:01]} 79. Kh2 {[%emt 0:00:01]} 1/2-1/2

[Event "9th HDBank Open 2019"]
[Site "Ho Chi Minh City"]
[Date "2019.03.07"]
[Round "1.29"]
[White "Liu, Guanchu"]
[Black "Panopio, Jr Rodolfo"]
[Result "1-0"]
[ECO "B12"]
[WhiteElo "2445"]
[BlackElo "2207"]
[Annotator "NA"]
[PlyCount "82"]
[EventDate "2019.03.07"]
[EventType "swiss"]
[EventCountry "VIE"]
[SourceTitle "playchess.com"]
[Source "ChessBase"]
[SourceQuality "1"]
[TimeControl "5400+30"]

1. e4 {[%emt 0:00:05]} c6 {[%emt 0:00:00]} 2. d4 {[%emt 0:00:58]} d5 {[%emt 0:00:00]} 3. e5 {[%emt 0:00:24]} Bf5 {[%emt 0:00:00]} 4. Nf3 {[%emt 0:00:07]} e6 {[%emt 0:01:03]} 5. Be2 {[%emt 0:00:14]} Nd7 {[%emt 0:01:37]} 6. O-O {[%emt 0:00:34]} a6 {[%emt 0:00:15]} 7. Nbd2 {[%emt 0:00:31]} Ne7 {[%emt 0:02:28]} 8. Nb3 {[%emt 0:01:46]} Qc7 {[%emt 0:01:55]} 9. Be3 {[%emt 0:02:10]} Bg4 {[%emt 0:01:20]} 10. Nfd2 {[%emt 0:16:45]} Bf5 {[%emt 0:05:13]} 11. f4 {[%emt 0:02:23]} Bg6 {[%emt 0:02:29]} 12. Bf2 {[%emt 0:00:39]} h5 {[%emt 0:00:47]} 13. Rc1 {[%emt 0:07:42]} O-O-O {[%emt 0:13:32]} 14. Qe1 {[%emt 0:03:51]} Kb8 {[%emt 0:00:34]} 15. a3 {[%emt 0:10:38]} Bf5 $14 {[%emt 0:03:34]} 16. c4 {[%emt 0:05:07]} dxc4 {[%emt 0:02:50]} 17. Nxc4 {[%emt 0:00:08]} Nd5 {[%emt 0:00:15]} 18. Ne3 {[%emt 0:04:33]} Be4 {[%emt 0:03:29]} 19. Nd2 {[%emt 0:03:13]} Nxe3 {[%emt 0:01:25]} 20. Bxe3 {[%emt 0:00:05]} Bd5 {[%emt 0:03:24]} 21. f5 {[%emt 0:03:28]} Be7 {[%emt 0:04:00]} 22. fxe6 {[%emt 0:02:42]} Bxe6 {[%emt 0:00:52]} 23. Bc4 {[%emt 0:01:03]} Nf8 {[%emt 0:03:05]} 24. Qg3 {[%emt 0:08:45]} g5 {[%emt 0:01:42]} 25. Ne4 {[%emt 0:01:29]} Rg8 {[%emt 0:03:59]} 26. Qf2 {[%emt 0:03:16]} Qd7 {[%emt 0:02:28]} 27. Bxe6 {[%emt 0:01:48]} fxe6 {[%emt 0:02:42]} 28. Nf6 {[%emt 0:02:21]} Bxf6 {[%emt 0:00:05]} 29. exf6 {[%emt 0:00:03]} Qf7 {[%emt 0:00:29]} 30. Bxg5 {[%emt 0:00:13]} Rd5 {[%emt 0:00:41]} 31. Bf4+ {[%emt 0:00:57]} Ka8 {[%emt 0:00:07]} 32. Be5 {[%emt 0:01:09]} Nd7 {[%emt 0:00:27]} 33. Qe2 {[%emt 0:02:42]} Rg5 {[%emt 0:01:02]} 34. Rxc6 {[%emt 0:00:45]} Ka7 {[%emt 0:04:25]} 35. Rc7 {[%emt 0:00:23]} h4 {[%emt 0:00:06]} 36. h3 {[%emt 0:01:12]} Qf8 {[%emt 0:01:06]} 37. Qe3 {[%emt 0:01:07]} Qg8 {[%emt 0:01:31]} 38. f7 {[%emt 0:04:25]} Rxg2+ {[%emt 0:00:05]} 39. Kh1 {[%emt 0:00:03]} Qg6 {[%emt 0:00:07]} 40. Rxd7 {[%emt 0:00:07]} Rxb2 {[%emt 0:01:17]} 41. Qf3 Ka8 1-0

[Event "9th HDBank Open 2019"]
[Site "Ho Chi Minh City"]
[Date "2019.03.07"]
[Round "1.30"]
[White "Nguyen, Phuoc Tam"]
[Black "Chen, Qi b"]
[Result "1/2-1/2"]
[ECO "A05"]
[WhiteElo "2203"]
[BlackElo "2443"]
[Annotator "NA"]
[PlyCount "167"]
[EventDate "2019.03.07"]
[EventType "swiss"]
[EventCountry "VIE"]
[SourceTitle "playchess.com"]
[Source "ChessBase"]
[SourceQuality "1"]
[TimeControl "5400+30"]

1. Nf3 {[%emt 0:00:00]} Nf6 {[%emt 0:00:00]} 2. g3 {[%emt 0:00:00]} g6 {[%emt 0:00:00]} 3. Bg2 {[%emt 0:00:00]} Bg7 {[%emt 0:00:08]} 4. O-O {[%emt 0:00:00]} O-O {[%emt 0:00:06]} 5. c4 {[%emt 0:00:15]} d6 {[%emt 0:03:50]} 6. Nc3 {[%emt 0:02:54]} Nc6 {[%emt 0:02:20]} 7. d3 {[%emt 0:01:43]} e5 {[%emt 0:00:48]} 8. Rb1 {[%emt 0:00:27]} a5 {[%emt 0:02:45]} 9. a3 {[%emt 0:00:05]} h6 {[%emt 0:00:40]} 10. b4 {[%emt 0:02:28]} axb4 {[%emt 0:00:09]} 11. axb4 {[%emt 0:00:02] LiveBook: 577 Games} Be6 {[%emt 0:00:25]} 12. b5 {[%emt 0:02:26]} Ne7 {[%emt 0:00:29]} 13. Bb2 {[%emt 0:02:34]} Nd7 {[%emt 0:17:59]} 14. Nd2 {[%emt 0:15:06]} c6 {[%emt 0:04:01]} 15. Qc2 {[%emt 0:01:18]} d5 {[%emt 0:15:49]} 16. Ra1 {[%emt 0:01:14]} Qc7 {[%emt 0:04:42]} 17. Ba3 {[%emt 0:20:06]} Rfe8 {[%emt 0:16:17]} 18. Qb3 {[%emt 0:17:43]} e4 {[%emt 0:08:32]} 19. dxe4 {[%emt 0:09:37]} dxc4 {[%emt 0:02:20]} 20. Qc2 {[%emt 0:00:13]} Qe5 {[%emt 0:02:50]} 21. Bb2 {[%emt 0:10:27]} cxb5 {[%emt 0:00:43]} 22. Nf3 {[%emt 0:01:12]} Qc5 {[%emt 0:01:46]} 23. e5 {[%emt 0:00:37]} Rxa1 {[%emt 0:05:25]} 24. Rxa1 {[%emt 0:01:24]} Bf5 {[%emt 0:00:13]} 25. Ne4 {[%emt 0:02:49]} Bxe4 {[%emt 0:00:27]} 26. Qxe4 {[%emt 0:00:02]} Nc6 {[%emt 0:00:12]} 27. Rd1 {[%emt 0:03:51]} Nf6 {[%emt 0:04:03]} 28. Qc2 {[%emt 0:03:21]} Ng4 {[%emt 0:00:46]} 29. e3 {[%emt 0:00:04]} Ngxe5 {[%emt 0:02:46]} 30. Nxe5 {[%emt 0:00:06]} Bxe5 {[%emt 0:00:11]} 31. Rd5 {[%emt 0:00:13]} Qb4 {[%emt 0:00:14]} 32. Bxe5 {[%emt 0:00:21]} Rxe5 {[%emt 0:01:08]} 33. Rd7 {[%emt 0:01:13]} Re7 {[%emt 0:00:40]} 34. Rd1 {[%emt 0:02:12]} Ne5 {[%emt 0:01:54]} 35. h4 {[%emt 0:00:07]} h5 {[%emt 0:00:16]} 36. Bd5 {[%emt 0:00:56]} Kh7 {[%emt 0:01:08]} 37. Kg2 {[%emt 0:00:06]} Nd3 {[%emt 0:00:24]} 38. Rxd3 {[%emt 0:00:25]} cxd3 {[%emt 0:00:05]} 39. Qxd3 {[%emt 0:00:04]} Rc7 {[%emt 0:00:59]} 40. e4 {[%emt 0:00:41]} Qb2 {[%emt 0:00:35]} 41. Qf3 {[%emt 0:00:26]} Kg7 {[%emt 0:00:36]} 42. Qf4 {[%emt 0:00:06]} Rd7 {[%emt 0:00:53]} 43. Qb8 {[%emt 0:00:07]} Qf6 {[%emt 0:00:27]} 44. Qc8 {[%emt 0:01:08]} Qe7 {[%emt 0:00:20]} 45. Qc3+ {[%emt 0:01:30]} Kh7 {[%emt 0:00:01]} 46. Qf3 {[%emt 0:00:11]} Rc7 {[%emt 0:00:40]} 47. Qe3 {[%emt 0:00:59]} Rc2 {[%emt 0:01:24]} 48. Qb3 {[%emt 0:00:04]} Rc7 {[%emt 0:00:17]} 49. Qxb5 {[%emt 0:00:07]} Qd7 {[%emt 0:00:31]} 50. Qb6 {[%emt 0:00:19]} Qe7 {[%emt 0:00:20]} 51. Qb5 {[%emt 0:00:20]} Kg7 {[%emt 0:00:41]} 52. Qb6 {[%emt 0:00:13]} Rd7 {[%emt 0:00:14]} 53. Qb2+ {[%emt 0:00:14]} f6 {[%emt 0:00:23]} 54. Qb5 {[%emt 0:00:46]} Rc7 {[%emt 0:00:51]} 55. Qb6 {[%emt 0:00:13]} Qd7 {[%emt 0:00:25]} 56. Kg1 {[%emt 0:01:15]} Qc8 {[%emt 0:00:30]} 57. Kg2 {[%emt 0:00:21]} Re7 {[%emt 0:00:15]} 58. Kg1 {[%emt 0:00:56]} Qc7 {[%emt 0:00:06]} 59. Qa7 {[%emt 0:00:05]} Qd7 {[%emt 0:00:30]} 60. Qb8 {[%emt 0:00:19]} Re8 {[%emt 0:00:58]} 61. Qxb7 {[%emt 0:00:05]} Qxb7 {[%emt 0:00:05]} 62. Bxb7 {[%emt 0:00:03]} Kf8 {[%emt 0:00:08]} 63. Kg2 {[%emt 0:00:03]} Ke7 {[%emt 0:00:06]} 64. Kf3 {[%emt 0:00:16]} Rb8 {[%emt 0:00:14]} 65. Bd5 {[%emt 0:00:16]} Rb2 {[%emt 0:00:06]} 66. Bc6 {[%emt 0:00:09]} g5 {[%emt 0:00:33]} 67. hxg5 {[%emt 0:02:16]} fxg5 {[%emt 0:00:02]} 68. Kg2 {[%emt 0:00:12]} Rc2 {[%emt 0:00:24]} 69. Bd5 {[%emt 0:00:05]} Kf6 {[%emt 0:00:05]} 70. Bb3 {[%emt 0:00:36]} Rc3 {[%emt 0:01:06]} 71. Bd5 {[%emt 0:00:45]} Ke5 {[%emt 0:00:09]} 72. Kh3 {[%emt 0:01:35]} Rf3 {[%emt 0:00:14]} 73. Kg2 {[%emt 0:00:04]} Rf8 {[%emt 0:00:05]} 74. Bc6 {[%emt 0:00:07]} h4 {[%emt 0:00:26]} 75. Kh3 {[%emt 0:00:34]} Rh8 {[%emt 0:00:30]} 76. Bb7 {[%emt 0:00:24]} Rh7 {[%emt 0:00:41]} 77. Bc6 {[%emt 0:00:06]} hxg3+ {[%emt 0:03:45]} 78. Kxg3 {[%emt 0:00:05]} Rh4 {[%emt 0:00:04]} 79. Bb7 {[%emt 0:00:05]} Rf4 {[%emt 0:00:14]} 80. Bc6 {[%emt 0:00:18]} Kd4 {[%emt 0:00:11]} 81. f3 {[%emt 0:01:06]} Ke5 {[%emt 0:00:24]} 82. Bd5 {[%emt 0:00:09]} Kd4 {[%emt 0:00:05]} 83. Bc6 {[%emt 0:00:04]} Ke5 {[%emt 0:00:02]} 84. Bd5 {[%emt 0:00:05]} 1/2-1/2

[Event "9th HDBank Open 2019"]
[Site "Ho Chi Minh City"]
[Date "2019.03.08"]
[Round "2.6"]
[White "Dang, Hoang Son"]
[Black "Bogdanovich, Stanislav"]
[Result "0-1"]
[ECO "D10"]
[WhiteElo "2385"]
[BlackElo "2536"]
[Annotator "RC"]
[PlyCount "92"]
[EventDate "2019.03.07"]
[EventType "swiss"]
[EventCountry "VIE"]
[SourceTitle "playchess.com"]
[Source "ChessBase"]
[SourceQuality "1"]
[TimeControl "5400+30"]

1. d4 {[%emt 0:00:00]} d5 {[%emt 0:00:03]} 2. c4 {[%emt 0:00:05]} c6 {[%emt 0:01:50]} 3. cxd5 {[%emt 0:01:43]} cxd5 {[%emt 0:00:17]} 4. Bf4 {[%emt 0:00:10]} Nc6 {[%emt 0:06:15]} 5. Nc3 {[%emt 0:01:38]} Nf6 {[%emt 0:07:20]} 6. Rc1 {[%emt 0:00:38]} Nh5 {[%emt 0:08:00]} 7. Bd2 {[%emt 0:05:23]} g6 {[%emt 0:08:37]} 8. e4 {[%emt 0:06:20]} Nf6 {[%emt 0:06:49]} 9. exd5 {[%emt 0:05:45]} Nxd5 {[%emt 0:00:19]} 10. Bc4 {[%emt 0:00:28]} Nb6 {[%emt 0:03:06]} 11. Bb5 {[%emt 0:07:55]} Qxd4 {[%emt 0:04:50]} 12. Nf3 {[%emt 0:05:02]} Qd8 {[%emt 0:03:05]} 13. Ne5 {[%emt 0:04:25]} Bd7 {[%emt 0:01:09]} 14. Nxd7 {[%emt 0:02:44]} Qxd7 {[%emt 0:04:03]} 15. O-O {[%emt 0:06:33]} Bg7 {[%emt 0:02:32]} 16. Be3 {[%emt 0:08:40]} Qxd1 {[%emt 0:05:06]} 17. Rfxd1 {[%emt 0:01:37]} O-O {[%emt 0:00:37]} 18. Bc5 {[%emt 0:00:22]} Rfc8 {[%emt 0:10:22]} 19. Bxb6 {[%emt 0:04:59]} Bxc3 {[%emt 0:02:49]} 20. Rxc3 {[%emt 0:02:34]} axb6 {[%emt 0:03:21]} 21. a3 {[%emt 0:00:14]} Rd8 {[%emt 0:02:59]} 22. Rcd3 {[%emt 0:07:05]} Rxd3 {[%emt 0:01:46]} 23. Rxd3 {[%emt 0:00:02]} Na7 {[%emt 0:05:14]} 24. Ba4 {[%emt 0:04:59]} Rc8 {[%emt 0:02:26]} 25. Kf1 {[%emt 0:02:29]} b5 {[%emt 0:00:57]} 26. Bd1 {[%emt 0:02:12]} Rc7 {[%emt 0:01:31]} 27. Ke1 {[%emt 0:00:46]} Nc8 {[%emt 0:00:31]} 28. Be2 {[%emt 0:09:39]} Nd6 {[%emt 0:00:35]} 29. Rb3 {[%emt 0:01:14]} Rc1+ {[%emt 0:02:41]} 30. Kd2 {[%emt 0:00:27]} Rg1 {[%emt 0:00:03]} 31. Bf3 {[%emt 0:00:30]} Rb1 {[%emt 0:00:39]} 32. Bd1 {[%emt 0:01:49]} Kg7 {[%emt 0:01:36]} 33. Kc2 {[%emt 0:00:10]} Ra1 {[%emt 0:00:02]} 34. g3 {[%emt 0:02:36]} g5 {[%emt 0:01:01]} 35. Rc3 {[%emt 0:00:47]} f5 {[%emt 0:00:47]} 36. f4 {[%emt 0:00:13]} g4 {[%emt 0:00:31]} 37. Rc5 {[%emt 0:01:00]} Kf6 {[%emt 0:00:55]} 38. Rd5 {[%emt 0:01:09]} Nc4 {[%emt 0:01:24]} 39. Rd3 {[%emt 0:00:01]} Rxd1 {[%emt 0:00:43]} 40. Rxd1 {[%emt 0:00:45]} Ne3+ {[%emt 0:00:02]} 41. Kd2 {[%emt 0:00:06]} Nxd1 {[%emt 0:00:03]} 42. Kxd1 {[%emt 0:00:03]} e5 {[%emt 0:00:16]} 43. fxe5+ {[%emt 0:02:06]} Kxe5 {[%emt 0:00:03]} 44. Kd2 {[%emt 0:00:34]} f4 {[%emt 0:00:25]} 45. Kd3 {[%emt 0:00:26]} f3 {[%emt 0:01:47]} 46. Ke3 {[%emt 0:00:13]} b4 {[%emt 0:00:36] Kd4+} 0-1